Workbook

Sheet Детский сад
A1: Категория: | B1: Дети 3-7 лет
A3: День 1
A4: Прием пищи | B4: Наименование блюда | C4: Выход блюда | D4: Пищевые вещества, г | G4: Энергет. ценность, ккал | H4: Витамин С | I4: № рецептуры
D5: Б | E5: Ж | F5: У
A6: ЗАВТРАК | B6: Каша манная с маслом | C6: 180/5 | D6: 4.07 | E6: 7.20 | F6: 27.51 | G6: 159.30 | H6: 0.00 | I6: 168
A7: ЗАВТРАК | B7: Кофейный напиток с молоком | C7: 180 | D7: 2.85 | E7: 2.41 | F7: 14.36 | G7: 91.00 | H7: 1.17 | I7: 395
A8: ЗАВТРАК | B8: Бутерброд с маслом | C8: 35 | D8: 2.14 | E8: 6.60 | F8: 12.79 | G8: 119.00 | H8: 0.00 | I8: 1
A9: ИТОГО ПО ПРИЕМУ ПИЩИ: | C9: 400 | D9: =SUM(D6:D8) -> 9.06 | E9: =SUM(E6:E8) -> 16.21 | F9: =SUM(F6:F8) -> 54.66 | G9: =SUM(G6:G8) -> 369.30 | H9: =SUM(H6:H8) -> 1.17
A10: ЗАВТРАК 2 | B10: Сок яблочный | C10: 200 | D10: 1.00 | E10: 0.00 | F10: 22.40 | G10: 90.00 | H10: 4.00 | I10: 399
A11: ИТОГО ПО ПРИЕМУ ПИЩИ: | C11: =SUM(C10) -> 200 | D11: 1.00 | E11: 0.00 | F11: 22.40 | G11: 90.00 | H11: 4.00
A12: ОБЕД | B12: Икра кабачковая | C12: 50 | D12: 0.95 | E12: 4.45 | F12: 3.85 | G12: 59.50 | H12: 3.50 | I12: 121 | K12: 170 | L12: =$K12*L13/$K13 -> 16.10 | M12: =$K12*M13/$K13 -> 12.54 | N12: 9.67 | O12: 214.63 | P12: 0.52
A13: ОБЕД | B13: Щи из квашеной капусты с картофелем на мясном б. | C13: 200 | D13: 1.24 | E13: 3.96 | F13: 4.70 | G13: 59.40 | H13: 9.74 | I13: 144 | K13: 180 | L13: 17.05 | M13: 13.28 | N13: 10.24 | O13: 227.25 | P13: 0.55
A14: ОБЕД | B14: Гуляш из отварного мяса | C14: 80 | D14: 10.28 | E14: 8.27 | F14: 2.64 | G14: 126.00 | H14: 0.55 | I14: 277
A15: ОБЕД | B15: Каша гречневая рассыпчатая | C15: 130 | D15: 7.70 | E15: 7.70 | F15: 28.88 | G15: 210.60 | H15: 0.00 | I15: 313
A16: ОБЕД | B16: Компот из свежих плодов | C16: 180 | D16: 0.14 | E16: 0.14 | F16: 21.49 | G16: 87.80 | H16: 1.55 | I16: 526
A17: ОБЕД | B17: Хлеб ржаной | C17: 45 | D17: 2.34 | E17: 0.54 | F17: 19.93 | G17: 95.7 | H17: 0.00 | I17: 1
A18: ИТОГО ПО ПРИЕМУ ПИЩИ: | C18: =SUM(C12:C17) -> 685 | D18: 22.65 | E18: 25.06 | F18: 81.49 | G18: 639.00 | H18: 15.34
A19: ПОЛДНИК | B19: Кефир | C19: 200 | D19: 5.80 | E19: 5.00 | F19: 8.00 | G19: 100.00 | H19: 1.40 | I19: 401
A20: ПОЛДНИК | B20: Хлеб пшеничный | C20: 20 | D20: 1.42 | E20: 0.22 | F20: 9.10 | G20: 45.80 | H20: 0.00 | I20: 1
A21: ПОЛДНИК | B21: Печенье | C21: 30 | D21: 2.22 | E21: 2.94 | F21: 21.90 | G21: 122.10 | H21: 0.00 | I21: 609
A22: ИТОГО ПО ПРИЕМУ ПИЩИ: | C22: =SUM(C19:C21) -> 250 | D22: 9.44 | E22: 8.16 | F22: 39.00 | G22: 267.90 | H22: 1.40
A23: УЖИН | B23: Пудинг из творога с яблоками | C23: 125 | D23: 17.01 | E23: 13.33 | F23: 18.28 | G23: 261.50 | H23: 1.66 | I23: 240
A24: УЖИН | B24: Яйцо вареное | C24: 40 | D24: 5.10 | E24: 4.60 | F24: 0.30 | G24: 63.00 | H24: 0.00 | I24: 306
A25: УЖИН | B25: Хлеб пшеничный | C25: 25 | D25: 1.78 | E25: 0.28 | F25: 11.38 | G25: 57.30 | H25: 0.00 | I25: 1
A26: УЖИН | B26: Чай с сахаром | C26: 200/7 | D26: 0.07 | E26: 0.02 | F26: 11.05 | G26: 44.00 | H26: 0.03 | I26: 392
A27: УЖИН | B27: Фрукты | C27: 100 | D27: 0.40 | E27: 0.40 | F27: 9.80 | G27: 44.00 | H27: 10.00 | I27: 368
A28: ИТОГО ПО ПРИЕМУ ПИЩИ: | C28: 497 | D28: 8.00 | E28: =SUM(E23:E27) -> 18.63 | F28: =SUM(F23:F27) -> 50.81 | G28: =SUM(G23:G27) -> 469.80 | H28: =SUM(H23:H27) -> 11.69
A29: ИТОГО ЗА ДЕНЬ: | C29: =C28+C22+C18+C11+C9 -> 2032 | D29: 50.15 | E29: 68.06 | F29: 248.36 | G29: 1836.00 | H29: 33.60
A31: День 2
A32: Прием пищи | B32: Наименование блюда | C32: Выход блюда | D32: Пищевые вещества, г | G32: Энергет. ценность, ккал | H32: Витамин С | I32: № рецептуры
D33: Б | E33: Ж | F33: У
A34: ЗАВТРАК | B34: Каша вязкая гречневая на молоке с маслом | C34: 200/5 | D34: 6.54 | E34: 11 | F34: 27.9 | G34: 184 | H34: 0 | I34: 168
A35: ЗАВТРАК | B35: Чай с сахаром | C35: 200/7 | D35: 0.07 | E35: 0.02 | F35: 11.05 | G35: 44.00 | H35: 0.03 | I35: 392
A36: ЗАВТРАК | B36: Бутерброд с маслом | C36: 35 | D36: 2.14 | E36: 6.6 | F36: 12.79 | G36: 119 | H36: 0.00 | I36: 1
A37: ИТОГО ПО ПРИЕМУ ПИЩИ: | C37: 447 | D37: =SUM(D34:D36) -> 8.75 | E37: =SUM(E34:E36) -> 17.62 | F37: =SUM(F34:F36) -> 51.74 | G37: =SUM(G34:G36) -> 347.00 | H37: =SUM(H34:H36) -> 0.03
A38: ЗАВТРАК 2 | B38: Сок яблочный | C38: 200 | D38: 1.00 | E38: 0.00 | F38: 22.40 | G38: 90.00 | H38: 4.00 | I38: 399
A39: ИТОГО ПО ПРИЕМУ ПИЩИ: | C39: =SUM(C38) -> 200 | D39: 1.00 | E39: 0.00 | F39: 22.40 | G39: 90.00 | H39: 4.00
A40: ОБЕД | B40: Салат из квашеной капусты | C40: 50 | D40: 0.8 | E40: 5.05 | F40: 1.5 | G40: 54.5 | H40: 9.42 | I40: 17
A41: ОБЕД | B41: Свекольник на мясном б. | C41: 200 | D41: 1.54 | E41: 5.06 | F41: 8.04 | G41: 83.3 | H41: 9.88 | I41: 58
A42: ОБЕД | B42: Жаркое по-домашнему | C42: 220 | D42: 24.22 | E42: 7.47 | F42: 21.95 | G42: 284.90 | H42: 8.97 | I42: 276
A43: ОБЕД | B43: Компот из сушеных фруктов | C43: 200 | D43: 0.44 | E43: 0.02 | F43: 27.76 | G43: 113 | H43: 0.44 | I43: 376
A44: ОБЕД | B44: Хлеб ржаной | C44: 50 | D44: 2.6 | E44: 0.6 | F44: 22.14 | G44: 106.3 | H44: 0.00 | I44: 1
A45: ОБЕД
A46: ИТОГО ПО ПРИЕМУ ПИЩИ: | C46: =SUM(C40:C45) -> 720 | D46: 29.60 | E46: 18.20 | F46: 81.39 | G46: 642.00 | H46: 28.71
A47: ПОЛДНИК | B47: Булочка Молочная | C47: 70 | D47: 6.50 | E47: 1.39 | F47: 36.48 | G47: 183.90 | H47: 0.17 | I47: 479
A48: ПОЛДНИК | B48: Кисель из ягод | C48: 180 | D48: 0.08 | E48: 0.04 | F48: 23.52 | G48: 94.70 | H48: 1.65 | I48: 378
A49: ИТОГО ПО ПРИЕМУ ПИЩИ: | C49: =SUM(C47:C48) -> 250 | D49: 6.58 | E49: 1.43 | F49: 60.00 | G49: 278.60 | H49: 1.82
A50: УЖИН | B50: Омлет натуральный | C50: 100 | D50: 8.62 | E50: 13.38 | F50: 2.30 | G50: 163.10 | H50: 0.33 | I50: 307
A51: УЖИН | B51: Салат из зеленого горошка | C51: 60 | D51: 1.78 | E51: 3.11 | F51: 1.91 | G51: 50 | H51: 6.6 | I51: 10
A52: УЖИН | B52: Бутерброд с сыром | C52: 35 | D52: 4.11 | E52: 4.63 | F52: 11.29 | G52: 103.30 | H52: 0.06 | I52: 3
A53: УЖИН | B53: Какао с молоком | C53: 180 | D53: 3.67 | E53: 3.19 | F53: 15.82 | G53: 107 | H53: 1.43 | I53: 397
A54: УЖИН | B54: Фрукты | C54: 100 | D54: 0.40 | E54: 0.40 | F54: 9.80 | G54: 44.00 | H54: 10.00 | I54: 368
A55: ИТОГО ПО ПРИЕМУ ПИЩИ: | C55: 537 | D55: =SUM(D50:D54) -> 18.58 | E55: 24.71 | F55: 41.12 | G55: 467.40 | H55: 18.42
A56: ИТОГО ЗА ДЕНЬ: | C56: =C55+C49+C46+C39+C37 -> 2154 | D56: 64.51 | E56: 61.96 | F56: 256.65 | G56: 1825.00 | H56: 52.98
A58: День 3
A59: Прием пищи | B59: Наименование блюда | C59: Выход блюда | D59: Пищевые вещества, г | G59: Энергет. ценность, ккал | H59: Витамин С | I59: № рецептуры
D60: Б | E60: Ж | F60: У
A61: ЗАВТРАК | B61: Каша вязкая геркулесовая с маслом | C61: 180/5 | D61: 4.85 | E61: 7.2 | F61: 24.42 | G61: 168 | H61: 0.00 | I61: 168
A62: ЗАВТРАК | B62: Кофейный напиток с молоком | C62: 180 | D62: 2.85 | E62: 2.41 | F62: 14.36 | G62: 91 | H62: 1.17 | I62: 395
A63: УЖИН | B63: Бутерброд с маслом | C63: 35 | D63: 2.14 | E63: 6.6 | F63: 12.79 | G63: 119 | H63: 0.00 | I63: 1
A64: ИТОГО ПО ПРИЕМУ ПИЩИ: | C64: 400 | D64: =SUM(D61:D63) -> 9.84 | E64: =SUM(E61:E63) -> 16.21 | F64: =SUM(F61:F63) -> 51.57 | G64: =SUM(G61:G63) -> 378.00 | H64: =SUM(H61:H63) -> 1.17
A65: ЗАВТРАК 2 | B65: Компот из свежих плодов | C65: 190 | D65: 0.15 | E65: 0.15 | F65: 22.67 | G65: 92.70 | H65: 1.63 | I65: 526
A66: ИТОГО ПО ПРИЕМУ ПИЩИ: | C66: =SUM(C65) -> 190 | D66: 0.15 | E66: 0.15 | F66: 22.67 | G66: 92.70 | H66: 1.63
A67: ОБЕД | B67: Салат из свеклы | C67: 50 | D67: 0.75 | E67: 2.75 | F67: 4.20 | G67: 44.50 | H67: 2.85 | I67: 51
A68: ОБЕД | B68: Щи из свежей капусты с картофелем с мясом | C68: 200 | D68: 1.39 | E68: 3.9 | F68: 7.37 | G68: 68 | H68: 14.76 | I68: 67
A69: ОБЕД | B69: Биточки рыбные | C69: 70 | D69: 9.73 | E69: 1.47 | F69: 6.72 | G69: 79.10 | H69: 0.28 | I69: 351
A70: ОБЕД | B70: Рис отварной | C70: 130 | D70: 3.16 | E70: 4.65 | F70: 29.62 | G70: 182.00 | H70: 0.00 | I70: 315
A71: ОБЕД | B71: Соус польский | C71: 30 | D71: 0.77 | E71: 6.49 | F71: 1.38 | G71: 67.00 | H71: 0.46 | I71: 466
A72: ОБЕД | B72: Компот из изюма | C72: 200 | D72: 0.44 | E72: 0.02 | F72: 27.76 | G72: 113 | H72: 0.44 | I72: 376
A73: ОБЕД | B73: Хлеб ржаной | C73: 40 | D73: 2.08 | E73: 0.48 | F73: 17.71 | G73: 85.00 | H73: 0.00 | I73: 1
A74: ИТОГО ПО ПРИЕМУ ПИЩИ: | C74: =SUM(C67:C73) -> 720.00 | D74: 18.32 | E74: 19.76 | F74: 94.76 | G74: 638.60 | H74: 18.79
A75: ПОЛДНИК | B75: Кефир | C75: 200 | D75: 5.80 | E75: 5.00 | F75: 8.00 | G75: 100.00 | H75: 1.40 | I75: 401
A76: ПОЛДНИК | B76: Хлеб пшеничный | C76: 25 | D76: 1.78 | E76: 0.28 | F76: 11.38 | G76: 57.30 | H76: 0.00 | I76: 1
A77: ПОЛДНИК | B77: Пряники | C77: 30 | D77: 1.77 | E77: 1.41 | F77: 22.5 | G77: 109.8 | H77: 0.00 | I77: 608
A78: ИТОГО ПО ПРИЕМУ ПИЩИ: | C78: =SUM(C75:C77) -> 255 | D78: 9.35 | E78: 6.69 | F78: 41.88 | G78: 267.10 | H78: 1.40
A79: УЖИН | B79: Запеканка картофельная с печенью | C79: 200 | D79: 15.22 | E79: 7.31 | F79: 23.77 | G79: 297.5 | H79: 8.00 | I79: 19
A80: УЖИН | B80: Соус сметанный | C80: 30 | D80: 0.42 | E80: 1.22 | F80: 1.76 | G80: 22.2 | H80: 0.01 | I80: 354
A81: УЖИН | B81: Хлеб пшеничный | C81: 20 | D81: 1.42 | E81: 0.22 | F81: 9.10 | G81: 45.80 | H81: 0.00 | I81: 1
A82: УЖИН | B82: Чай с сахаром | C82: 200/7 | D82: 0.07 | E82: 0.02 | F82: 11.05 | G82: 44.00 | H82: 0.03 | I82: 392
A83: УЖИН | B83: Фрукты | C83: 100 | D83: 0.40 | E83: 0.40 | F83: 9.80 | G83: 44.00 | H83: 10.00 | I83: 368
A84: ИТОГО ПО ПРИЕМУ ПИЩИ: | C84: 557 | D84: =SUM(D79:D83) -> 17.53 | E84: =SUM(E79:E83) -> 9.17 | F84: =SUM(F79:F83) -> 55.48 | G84: =SUM(G79:G83) -> 453.50 | H84: =SUM(H79:H83) -> 18.04
A85: ИТОГО ЗА ДЕНЬ: | C85: =C84+C78+C74+C66+C64 -> 2122 | D85: 55.19 | E85: 51.98 | F85: 266.36 | G85: 1829.90 | H85: 41.03
A87: День 4
A88: Прием пищи | B88: Наименование блюда | C88: Выход блюда | D88: Пищевые вещества, г | G88: Энергет. ценность, ккал | H88: Витамин С | I88: № рецептуры
D89: Б | E89: Ж | F89: У
A90: ЗАВТРАК | B90: Каша вязкая пшенная с маслом | C90: 185/5 | D90: 5.24 | E90: 7.4 | F90: 30.11 | G90: 185 | H90: 0 | I90: 168
A91: ЗАВТРАК | B91: Чай с сахаром | C91: 200/7 | D91: 0.07 | E91: 0.02 | F91: 11.05 | G91: 44.00 | H91: 0.03 | I91: 392
A92: ЗАВТРАК | B92: Бутерброд с маслом | C92: 35 | D92: 2.14 | E92: 6.6 | F92: 12.79 | G92: 119 | H92: 0 | I92: 1
A93: ИТОГО ПО ПРИЕМУ ПИЩИ: | C93: 432 | D93: =SUM(D90:D92) -> 7.45 | E93: =SUM(E90:E92) -> 14.02 | F93: =SUM(F90:F92) -> 53.95 | G93: =SUM(G90:G92) -> 348.00 | H93: =SUM(H90:H92) -> 0.03
A94: ЗАВТРАК 2 | B94: Кефир | C94: 180 | D94: 5.22 | E94: 4.50 | F94: 7.20 | G94: 90.00 | H94: 1.26 | I94: 401
A95: ИТОГО ПО ПРИЕМУ ПИЩИ: | C95: =SUM(C94) -> 180 | D95: 5.22 | E95: 4.50 | F95: 7.20 | G95: 90.00 | H95: 1.26
A96: ОБЕД | B96: Икра морковная | C96: 50 | D96: 0.45 | E96: 2.35 | F96: 2.96 | G96: 34.8 | H96: 2.76 | I96: 54
A97: ОБЕД | B97: Суп молочный с крупой | C97: 200 | D97: 4.82 | E97: 5.16 | F97: 16.52 | G97: 131.80 | H97: 1.28 | I97: 170
A98: ОБЕД | B98: Котлета мясная | C98: 70 | D98: 10.88 | E98: 8.09 | F98: 10.99 | G98: 160.1 | H98: 0.11 | I98: 282
A99: ОБЕД | B99: Пюре картофельное | C99: 130 | D99: 2.65 | E99: 4.16 | F99: 17.71 | G99: 119.6 | H99: 15.73 | I99: 321
A100: ОБЕД | B100: Компот из сушеных фруктов | C100: 180 | D100: 0.4 | E100: 0.02 | F100: 24.98 | G100: 101.7 | H100: 0.40 | I100: 376
A101: ОБЕД | B101: Хлеб ржаной | C101: 50 | D101: 2.6 | E101: 0.6 | F101: 22.14 | G101: 106.3 | H101: 0.00 | I101: 1
A102: ИТОГО ПО ПРИЕМУ ПИЩИ: | C102: =SUM(C96:C101) -> 680 | D102: 21.80 | E102: 20.38 | F102: 95.3 | G102: 654.3 | H102: 20.28
A103: ПОЛДНИК | B103: Сок яблочный | C103: 200 | D103: 0.00 | E103: 0.00 | F103: 22.40 | G103: 90.00 | H103: 4.00 | I103: 399
A104: ПОЛДНИК | B104: Ватрушка с творогом | C104: 65 | D104: 8.56 | E104: 5.08 | F104: 27.08 | G104: 187.40 | H104: 0.03 | I104: 458
A105: ПОЛДНИК
A106: ИТОГО ПО ПРИЕМУ ПИЩИ: | C106: =SUM(C103:C105) -> 265 | D106: 8.56 | E106: 5.08 | F106: 49.48 | G106: 277.40 | H106: 4.03
A107: УЖИН | B107: Макароны с сыром | C107: 180 | D107: 10.04 | E107: 9.25 | F107: 28.59 | G107: 237.6 | H107: 0.16 | I107: 206
A108: УЖИН | B108: Хлеб пшеничный | C108: 30 | D108: 2.13 | E108: 0.33 | F108: 13.65 | G108: 68.7 | H108: 0 | I108: 1
A109: УЖИН | B109: Какао с молоком | C109: 180 | D109: 3.67 | E109: 3.19 | F109: 15.82 | G109: 107 | H109: 1.43 | I109: 397
A110: УЖИН | B110: Фрукты | C110: 100 | D110: 0.4 | E110: 0.4 | F110: 9.8 | G110: 44 | H110: 10.00 | I110: 368
A111: ИТОГО ПО ПРИЕМУ ПИЩИ: | C111: =SUM(C107:C110) -> 490 | D111: =SUM(D107:D110) -> 16.24 | E111: =SUM(E107:E110) -> 13.17 | F111: =SUM(F107:F110) -> 67.86 | G111: =SUM(G107:G110) -> 457.30
A112: ИТОГО ЗА ДЕНЬ: | C112: =C111+C106+C102+C95+C93 -> 2047 | D112: 59.27 | E112: 57.15 | F112: 273.79 | G112: 1827.00 | H112: 25.60
A114: День 5
A115: Прием пищи | C115: Выход блюда | D115: Пищевые вещества, г | G115: Энергет.ценность, ккал | H115: Витамин С | I115: № рецептуры
D116: Б | E116: Ж | F116: У
A117: ЗАВТРАК | B117: Каша вязкая пшеничная с маслом | C117: 160/5 | D117: 4.39 | E117: 6.4 | F117: 26.7 | G117: 154.4 | H117: 0.00 | I117: 168
A118: ЗАВТРАК | B118: Кофейный напиток с молоком | C118: 200 | D118: 3.17 | E118: 2.68 | F118: 15.96 | G118: 101.1 | H118: 1.30 | I118: 395
A119: ЗАВТРАК | B119: Бутерброд с маслом | C119: 35 | D119: 2.14 | E119: 6.6 | F119: 12.79 | G119: 119 | H119: 0.00 | I119: 1
A120: ИТОГО ПО ПРИЕМУ ПИЩИ: | C120: 400 | D120: =SUM(D117:D119) -> 9.70 | E120: =SUM(E117:E119) -> 15.68 | F120: =SUM(F117:F119) -> 55.45 | G120: =SUM(G117:G119) -> 374.50 | H120: =SUM(H117:H119) -> 1.30
A121: ЗАВТРАК 2 | B121: Компот из свежих плодов | C121: 190 | D121: 0.15 | E121: 0.15 | F121: 22.67 | G121: 92.70 | H121: 1.63 | I121: 526
A122: ИТОГО ПО ПРИЕМУ ПИЩИ: | C122: =SUM(C121) -> 190 | D122: =SUM(D121) -> 0.15 | E122: =SUM(E121) -> 0.15 | F122: =SUM(F121) -> 22.67 | G122: =SUM(G121) -> 92.70 | H122: 3.16
A123: ОБЕД | B123: Огурец соленый порционно | C123: 60 | D123: 0.48 | E123: 0.06 | F123: 1.04 | G123: 7.8 | H123: 3 | I123: 113
A124: ОБЕД | B124: Суп картофельный с клецками на курином б. | C124: 200 | D124: 2.13 | E124: 3.19 | F124: 11.81 | G124: 84.4 | H124: 4.66 | I124: 151
A125: ОБЕД | B125: Голубцы ленивые с говядиной | C125: 200 | D125: 17 | E125: 16.6 | F125: 8 | G125: 250 | H125: 24.8 | I125: 377
A126: ОБЕД | B126: Соус сметанный с томатом | C126: 40 | D126: 1.38 | E126: 8.51 | F126: 2.53 | G126: 92 | H126: 0.58 | I126: 453
A127: ОБЕД | B127: Компот из кураги | C127: 200 | D127: 0.44 | E127: 0.02 | F127: 27.76 | G127: 113 | H127: 0.44 | I127: 376
A128: ОБЕД | B128: Хлеб ржаной | C128: 45 | D128: 2.60 | E128: 0.60 | F128: 22.14 | G128: 106.30 | H128: 0.00 | I128: 1
A129: ИТОГО ПО ПРИЕМУ ПИЩИ: | C129: =SUM(C123:C128) -> 745 | D129: 24.03 | E129: 28.98 | F129: 73.28 | G129: 653.50 | H129: 33.48
A130: ПОЛДНИК | B130: Кефир | C130: 200 | D130: 5.80 | E130: 5.00 | F130: 8.00 | G130: 100.00 | H130: 1.40 | I130: 401
A131: ПОЛДНИК | B131: Хлеб пшеничный | C131: 10 | D131: 0.71 | E131: 0.11 | F131: 4.54 | G131: 22.90 | H131: 0.00 | I131: 1
A132: ПОЛДНИК | B132: Вафли | C132: 40 | D132: 1.12 | E132: 1.33 | F132: 30.92 | G132: 140 | H132: 0.00 | I132: 607
A133: ИТОГО ПО ПРИЕМУ ПИЩИ: | C133: =SUM(C130:C132) -> 250 | D133: =SUM(D130:D132) -> 7.63 | E133: 6.44 | F133: 43.46 | G133: 262.9 | H133: 1.4
A134: УЖИН | B134: Суфле куриное | C134: 80 | D134: 11.6 | E134: 14.89 | F134: 2.44 | G134: 189.7 | H134: 0.15 | I134: 310
A135: УЖИН | B135: Картофельное пюре с морковью | C135: 140 | D135: 2.52 | E135: 6.3 | F135: 11.9 | G135: 114.8 | H135: 3.64 | I135: 435
A136: УЖИН | B136: Хлеб пшеничный | C136: 30 | D136: 2.13 | E136: 0.33 | F136: 13.65 | G136: 68.7 | H136: 0 | I136: 1
A137: УЖИН | B137: Чай с сахаром | C137: 200/7 | D137: 0.07 | E137: 0.02 | F137: 11.05 | G137: 44.00 | H137: 0.03 | I137: 392
A138: УЖИН | B138: Фрукты | C138: 100 | D138: 0.40 | E138: 0.40 | F138: 9.80 | G138: 44.00 | H138: 10.00 | I138: 368
A139: ИТОГО ПО ПРИЕМУ ПИЩИ: | C139: 557 | D139: =SUM(D134:D138) -> 16.72 | E139: 21.94 | F139: 48.84 | G139: 461.20 | H139: 13.82
A140: ИТОГО ЗА ДЕНЬ: | C140: =C139+C133+C129+C122+C120 -> 2142 | D140: 58.23 | E140: 73.19 | F140: 243.70 | G140: 1844.80 | H140: 53.16
A142: День 6
A143: Прием пищи | B143: Наименование блюда | C143: Выход блюда | D143: Пищевые вещества, г | G143: Энергет. ценность, ккал | H143: Витамин С | I143: № рецептуры
D144: Б | E144: Ж | F144: У
A145: ЗАВТРАК | B145: Каша манная с маслом | C145: 180/5 | D145: 4.07 | E145: 7.20 | F145: 27.51 | G145: 159.30 | H145: 0.00 | I145: 168
A146: ЗАВТРАК | B146: Кофейный напиток с молком | C146: 180 | D146: 2.85 | E146: 2.41 | F146: 14.36 | G146: 91.00 | H146: 1.17 | I146: 395
A147: ЗАВТРАК | B147: Бутерброд с маслом | C147: 35 | D147: 2.14 | E147: 6.60 | F147: 12.79 | G147: 119.00 | H147: 0.00 | I147: 1
A148: ИТОГО ПО ПРИЕМУ ПИЩИ: | C148: 400 | D148: =SUM(D145:D147) -> 9.06 | E148: =SUM(E145:E147) -> 16.21 | F148: =SUM(F145:F147) -> 54.66 | G148: =SUM(G145:G147) -> 369.30 | H148: =SUM(H145:H147) -> 1.17
A149: ЗАВТРАК 2 | B149: Сок яблочный | C149: 200 | D149: 1.00 | E149: 0.00 | F149: 22.40 | G149: 90.00 | H149: 4.00 | I149: 399
A150: ИТОГО ПО ПРИЕМУ ПИЩИ: | C150: =SUM(C149) -> 200 | D150: 1.00 | E150: 0.00 | F150: 22.40 | G150: 90.00 | H150: 4.00
A151: ОБЕД | B151: Икра кабачковая | C151: 50 | D151: 0.95 | E151: 4.45 | F151: 3.85 | G151: 59.50 | H151: 3.50 | I151: 121
A152: ОБЕД | B152: Суп картофельный с бобовыми на мясном б. | C152: 180 | D152: 3.95 | E152: 3.79 | F152: 11.75 | G152: 97.20 | H152: 4.18 | I152: 81
A153: ОБЕД | B153: Суфле из отварной говядины | C153: 70 | D153: 15.40 | E153: 13.30 | F153: 1.33 | G153: 186.90 | H153: 0.07 | I153: 392
A154: ОБЕД | B154: Макароны отварные | C154: 130 | D154: 4.77 | E154: 3.96 | F154: 22.90 | G154: 145.60 | H154: 0.00 | I154: 317
A155: ОБЕД | B155: Компот из свежих плодов | C155: 180 | D155: 0.14 | E155: 0.14 | F155: 21.49 | G155: 87.80 | H155: 1.55 | I155: 526
A156: ОБЕД | B156: Хлеб ржаной | C156: 35 | D156: 1.82 | E156: 0.42 | F156: 15.50 | G156: 74.40 | H156: 0.00 | I156: 1
A157: ИТОГО ПО ПРИЕМУ ПИЩИ: | C157: =SUM(C151:C156) -> 645 | D157: 27.03 | E157: 26.06 | F157: 76.82 | G157: 651.40 | H157: 9.30
A158: ПОЛДНИК | B158: Кефир | C158: 200 | D158: 5.80 | E158: 5.00 | F158: 8.00 | G158: 100.00 | H158: 1.40 | I158: 401
A159: ПОЛДНИК | B159: Хлеб пшеничный | C159: 20 | D159: 1.42 | E159: 0.22 | F159: 9.10 | G159: 45.80 | H159: 0.00 | I159: 1
A160: ПОЛДНИК | B160: Печенье | C160: 30 | D160: 2.22 | E160: 2.94 | F160: 21.90 | G160: 122.10 | H160: 0.00 | I160: 609
A161: ИТОГО ПО ПРИЕМУ ПИЩИ: | C161: =SUM(C158:C160) -> 250 | D161: 9.44 | E161: 8.16 | F161: 39.00 | G161: 267.90 | H161: 1.40
A162: УЖИН | B162: Пудинг творожный запеченный | C162: 125 | D162: 17.25 | E162: 16.42 | F162: 25 | G162: 322.5 | H162: 0.25 | I162: 325
A163: УЖИН | B163: Соус фруктовый | C163: 30 | D163: 0.03 | E163: 0.03 | F163: 4.83 | G163: 19.7 | H163: 0.54 | I163: 479
A164: УЖИН | B164: Хлеб пшеничный | C164: 20 | D164: 1.42 | E164: 0.22 | F164: 9.10 | G164: 45.80 | H164: 0.00 | I164: 1
A165: УЖИН | B165: Чай с сахаром | C165: 180/7 | D165: 0.06 | E165: 0.02 | F165: 9.99 | G165: 40.00 | H165: 0.03 | I165: 392
A166: УЖИН | B166: Фрукты | C166: 100 | D166: 0.40 | E166: 0.40 | F166: 9.80 | G166: 44.00 | H166: 10.00 | I166: 368
A167: ИТОГО ПО ПРИЕМУ ПИЩИ: | C167: 462 | D167: =SUM(D162:D166) -> 19.16 | E167: =SUM(E162:E166) -> 17.09 | F167: =SUM(F162:F166) -> 58.72 | G167: =SUM(G162:G166) -> 472.00 | H167: =SUM(H162:H166) -> 10.82
A168: ИТОГО ЗА ДЕНЬ: | C168: =C167+C161+C157+C150+C148 -> 1957 | D168: 65.69 | E168: 67.52 | F168: 251.60 | G168: 1850.60 | H168: 26.69
A170: День 7
A171: Прием пищи | B171: Наименование блюда | C171: Выход блюда | D171: Пищевые вещества, г | G171: Энергет. ценность, ккал | H171: Витамин С | I171: № рецептуры
D172: Б | E172: Ж | F172: У
A173: ЗАВТРАК | B173: Каша вязкая пшенная с маслом | C173: 185/5 | D173: 5.24 | E173: 7.4 | F173: 30.11 | G173: 185 | H173: 0.00 | I173: 168
A174: ЗАВТРАК | B174: Чай с сахаром | C174: 200/7 | D174: 0.07 | E174: 0.02 | F174: 11.05 | G174: 44.00 | H174: 0.03 | I174: 392
A175: ЗАВТРАК | B175: Бутерброд с маслом | C175: 35 | D175: 2.14 | E175: 6.6 | F175: 12.79 | G175: 119 | H175: 0.00 | I175: 1
A176: ИТОГО ПО ПРИЕМУ ПИЩИ: | B176: ПРИЕМУ ПИЩИ: 19,33% | C176: 432 | D176: =SUM(D173:D175) -> 7.45 | E176: =SUM(E173:E175) -> 14.02 | F176: =SUM(F173:F175) -> 53.95 | G176: =SUM(G173:G175) -> 348.00 | H176: =SUM(H173:H175) -> 0.03
A177: ЗАВТРАК 2 | B177: Кефир | C177: 180 | D177: 5.22 | E177: 4.50 | F177: 7.20 | G177: 90.00 | H177: 1.26 | I177: 401
A178: ИТОГО ПО ПРИЕМУ ПИЩИ: | B178: ПРИЕМУ ПИЩИ: 5% | C178: =SUM(C177) -> 180 | D178: 5.22 | E178: 4.50 | F178: 7.20 | G178: 90.00 | H178: 1.26
A179: ОБЕД | B179: Огурец соленый порционно | C179: 60 | D179: 0.48 | E179: 0.06 | F179: 1.04 | G179: 7.8 | H179: 3 | I179: 113
A180: ОБЕД | B180: Борщ с капустой и картофелем на мясном б. | C180: 200 | D180: 1.45 | E180: 3.93 | F180: 10.19 | G180: 82 | H180: 8.22 | I180: 57
A181: ОБЕД | B181: Картофельная запеканка с мясом | C181: 200 | D181: 14.7 | E181: 11.52 | F181: 31.15 | G181: 287.3 | H181: 4.61 | I181: 291
A182: ОБЕД | B182: Соус сметанный | C182: 30 | D182: 0.42 | E182: 1.22 | F182: 1.76 | G182: 22.2 | H182: 0.01 | I182: 354
A183: ОБЕД | B183: Компот из сушеных фруктов | C183: 200 | D183: 0.44 | E183: 0.02 | F183: 27.76 | G183: 113 | H183: 0.44 | I183: 376
A184: ОБЕД | B184: Хлеб ржаной | C184: 50 | D184: 2.6 | E184: 0.6 | F184: 22.14 | G184: 106.3 | H184: 0.00 | I184: 1
A185: ИТОГО ПО ПРИЕМУ ПИЩИ: | B185: ПРИЕМУ ПИЩИ: | C185: =SUM(C179:C184) -> 740 | D185: 20.09 | E185: 17.35 | F185: 94.04 | G185: 618.60 | H185: 16.28
A186: ПОЛДНИК | B186: Булочка Домашняя | C186: 60 | D186: 4.36 | E186: 7.52 | F186: 32.35 | G186: 214.5 | H186: 0.00 | I186: 469
A187: ПОЛДНИК | B187: Компот из замороженных ягод | C187: 190 | D187: 0.29 | E187: 0.1 | F187: 16.34 | G187: 67.5 | H187: 22.8 | I187: 530
A188: ПОЛДНИК
A189: ИТОГО ПО ПРИЕМУ ПИЩИ: | B189: ПРИЕМУ ПИЩИ: | C189: =SUM(C186:C188) -> 250 | D189: 4.65 | E189: 7.62 | F189: 48.69 | G189: 282.00 | H189: 22.80
A190: УЖИН | B190: Омлет натуральный | C190: 100 | D190: 8.62 | E190: 13.38 | F190: 2.30 | G190: 163.10 | H190: 0.33 | I190: 307
A191: УЖИН | B191: Салат из зеленого горошка | C191: 60 | D191: 1.78 | E191: 3.11 | F191: 1.91 | G191: 50 | H191: 6.6 | I191: 10
A192: УЖИН | B192: Бутерброд с сыром | C192: 35 | D192: 4.11 | E192: 4.63 | F192: 11.29 | G192: 103.30 | H192: 0.06 | I192: 3
A193: УЖИН | B193: Какао с молоком | C193: 180 | D193: 3.67 | E193: 3.19 | F193: 15.82 | G193: 107 | H193: 1.43 | I193: 397
A194: УЖИН | B194: Фрукты | C194: 100 | D194: 0.4 | E194: 0.4 | F194: 9.8 | G194: 44 | H194: 10.00 | I194: 368
A195: ИТОГО ПО ПРИЕМУ ПИЩИ: 25,56% | B195: ПРИЕМУ ПИЩИ: | C195: =SUM(C190:C194) -> 475 | D195: 18.58 | E195: 24.71 | F195: 41.12 | G195: 467.40 | H195: 18.42
A196: ИТОГО ЗА ДЕНЬ: | C196: =C195+C189+C185+C178+C176 -> 2077 | D196: 55.99 | E196: 68.20 | F196: 245.00 | G196: 1806.00 | H196: 58.79
A198: День 8
A199: Прием пищи | B199: Наименование блюда | C199: Выход блюда | D199: Пищевые вещества, г | G199: Энергет. ценность, ккал | H199: Витамин С | I199: № рецептуры
D200: Б | E200: Ж | F200: У
A201: ЗАВТРАК | B201: Каша вязкая ячневая с маслом | C201: 180/5 | D201: 3.95 | E201: 7.2 | F201: 25.47 | G201: 152.1 | H201: 0.00 | I201: 168
A202: ЗАВТРАК | B202: Кофейный напиток с молоком | C202: 180 | D202: 2.85 | E202: 2.41 | F202: 14.36 | G202: 91 | H202: 1.17 | I202: 395
A203: ЗАВТРАК | B203: Бутерброд с маслом | C203: 35 | D203: 2.14 | E203: 6.6 | F203: 12.79 | G203: 119 | H203: 0.00 | I203: 1
A204: ИТОГО ПО ПРИЕМУ ПИЩИ: | B204: ПРИЕМУ ПИЩИ: | C204: 400 | D204: =SUM(D201:D203) -> 8.94 | E204: =SUM(E201:E203) -> 16.21 | F204: =SUM(F201:F203) -> 52.62 | G204: =SUM(G201:G203) -> 362.10 | H204: =SUM(H201:H203) -> 1.17
A205: ЗАВТРАК 2 | B205: Компот из свежих плодов | C205: 190 | D205: 0.15 | E205: 0.15 | F205: 22.67 | G205: 92.70 | H205: 1.63 | I205: 526
A206: ИТОГО ПО ПРИЕМУ ПИЩИ: | B206: ПРИЕМУ ПИЩИ : | C206: =SUM(C205) -> 190 | D206: 0.15 | E206: 0.15 | F206: 22.67 | G206: 92.70 | H206: 1.63
A207: ОБЕД | B207: Салат из соленых огурцов с луком | C207: 60 | D207: 0.71 | E207: 3.63 | F207: 2.33 | G207: 46.2 | H207: 4.62 | I207: 19
A208: ОБЕД | B208: Суп "Крестьянский" с мясом | C208: 200 | D208: 1.84 | E208: 6.19 | F208: 12.33 | G208: 112.4 | H208: 14.72 | I208: 199
... 74 more rows

Sheet Лист2

Sheet Ясли
A1: Категория: | B1: Дети до 3-х лет
A3: День 1
A4: Прием пищи | B4: Наименование блюда | C4: Выход блюда | D4: Пищевые вещества, г | G4: Энергет. ценность, ккал | H4: Витамин С | I4: № рецептуры
D5: Б | E5: Ж | F5: У
A6: ЗАВТРАК | B6: Каша манная с маслом | C6: 150/4 | D6: 3.39 | E6: 6.00 | F6: 22.92 | G6: 132.70 | H6: 0.00 | I6: 168
A7: ЗАВТРАК | B7: Кофейный напиток с молоком | C7: 180 | D7: 2.85 | E7: 2.41 | F7: 14.36 | G7: 91.00 | H7: 1.17 | I7: 395
A8: ЗАВТРАК | B8: Бутерброд с маслом | C8: 20 | D8: 1,22 | E8: 3.77 | F8: 7.31 | G8: 68.00 | H8: 0.00 | I8: 1
A9: ИТОГО ПО ПРИЕМУ ПИЩИ: | C9: 354 | D9: =SUM(D6:D8) -> 6.24 | E9: =SUM(E6:E8) -> 12.18 | F9: =SUM(F6:F8) -> 44.59 | G9: =SUM(G6:G8) -> 291.70 | H9: =SUM(H6:H8) -> 1.17 | I9: 0
A10: ЗАВТРАК 2 | B10: Сок яблочный | C10: 150 | D10: 0.75 | E10: 0.00 | F10: 16.82 | G10: 67.50 | H10: 3.00 | I10: 399
A11: ИТОГО ПО ПРИЕМУ ПИЩИ: | C11: =SUM(C10) -> 150 | D11: 0.75 | E11: 0.00 | F11: 16.82 | G11: 67.50 | H11: 3.00 | I11: 0
A12: ОБЕД | B12: Икра кабачковая | C12: 30 | D12: 0.57 | E12: 2.67 | F12: 2.31 | G12: 35.70 | H12: 2.10 | I12: 121
A13: ОБЕД | B13: Щи из квашеной капусты с картофелем на мясном б. | C13: 180 | D13: 1.12 | E13: 3.56 | F13: 4.23 | G13: 53.50 | H13: 8.77 | I13: 144
A14: ОБЕД | B14: Гуляш из отварного мяса | C14: 60 | D14: 7.71 | E14: 6.20 | F14: 1.98 | G14: 94.50 | H14: 0.41 | I14: 277
A15: ОБЕД | B15: Каша гречневая рассыпчатая | C15: 110 | D15: 6.52 | E15: 6.52 | F15: 24.44 | G15: 178.20 | H15: 0.00 | I15: 313
A16: ОБЕД | B16: Компот из свежих плодов | C16: 150 | D16: 0.12 | E16: 0.12 | F16: 17.91 | G16: 73.20 | H16: 1.29 | I16: 526
A17: ОБЕД | B17: Хлеб ржаной | C17: 30 | D17: 1.56 | E17: 0.36 | F17: 13.29 | G17: 63.80 | H17: 0.00 | I17: 1
A18: ИТОГО ПО ПРИЕМУ ПИЩИ: | C18: =SUM(C12:C17) -> 560 | D18: 17.60 | E18: 19.43 | F18: 64.16 | G18: 498.90 | H18: 12.57 | I18: 0
A19: ПОЛДНИК | B19: Кефир | C19: 180 | D19: 5.22 | E19: 4.50 | F19: 7.20 | G19: 90.00 | H19: 1.26 | I19: 401
A20: ПОЛДНИК | B20: Хлеб пшеничный | C20: 20 | D20: 1.42 | E20: 0.22 | F20: 9.10 | G20: 45.80 | H20: 0.00 | I20: 1
A21: ПОЛДНИК | B21: Печенье | C21: 20 | D21: 1.48 | E21: 1.88 | F21: 13.80 | G21: 81.40 | H21: 0.00 | I21: 609
A22: ИТОГО ПО ПРИЕМУ ПИЩИ: | C22: =SUM(C19:C21) -> 220 | D22: 8.12 | E22: 6.60 | F22: 30.10 | G22: 217.20 | H22: 1.26 | I22: 0
A23: УЖИН | B23: Пудинг из творога с яблоками | C23: 100 | D23: 13.61 | E23: 10.67 | F23: 13.63 | G23: 209.10 | H23: 1.33 | I23: 240
A24: УЖИН | B24: Яйцо вареное 1/2шт | C24: 20 | D24: 2.55 | E24: 2.30 | F24: 0.15 | G24: 31.50 | H24: 0.00 | I24: 306
A25: УЖИН | B25: Хлеб пшеничный | C25: 20 | D25: 1.42 | E25: 0.22 | F25: 9.10 | G25: 45.80 | H25: 0.00 | I25: 1
A26: УЖИН | B26: Чай с сахаром | C26: 160/7 | D26: 0.06 | E26: 0.02 | F26: 8.88 | G26: 37.80 | H26: 0.02 | I26: 392
A27: УЖИН | B27: Фрукты | C27: 95 | D27: 0.38 | E27: 0.38 | F27: 9.31 | G27: 39.30 | H27: 9.50 | I27: 368
A28: ИТОГО ПО ПРИЕМУ ПИЩИ: | C28: 402 | D28: =SUM(D23:D27) -> 18.02 | E28: =SUM(E23:E27) -> 13.59 | F28: =SUM(F23:F27) -> 41.07 | G28: =SUM(G23:G27) -> 363.50 | H28: =SUM(H23:H27) -> 10.85
A29: ИТОГО ЗА ДЕНЬ: | C29: =C28+C22+C18+C11+C9 -> 1686 | D29: 50.73 | E29: 51.80 | F29: 196.74 | G29: 1438.80 | H29: 28.85
A31: День 2
A32: Прием пищи | B32: Наименование блюда | C32: Выход блюда | D32: Пищевые вещества, г | G32: Энергет. ценность, ккал | H32: Витамин С | I32: № рецептуры
D33: Б | E33: Ж | F33: У
A34: ЗАВТРАК | B34: Каша вязкая гречневая на молоке с маслом | C34: 150/4 | D34: 4.67 | E34: 8.25 | F34: 20.93 | G34: 146 | H34: 0 | I34: 168
A35: ЗАВТРАК | B35: Чай с сахаром | C35: 180/7 | D35: 0.06 | E35: 0.02 | F35: 9.99 | G35: 40.00 | H35: 0.03 | I35: 392
A36: ЗАВТРАК | B36: Бутерброд с маслом | C36: 25 | D36: 1.53 | E36: 4.71 | F36: 9.14 | G36: 85 | H36: 0.00 | I36: 1
A37: ИТОГО ПО ПРИЕМУ ПИЩИ: | C37: 366 | D37: =SUM(D34:D36) -> 6.26 | E37: =SUM(E34:E36) -> 12.98 | F37: =SUM(F34:F36) -> 40.06 | G37: =SUM(G34:G36) -> 271.00 | H37: =SUM(H34:H36) -> 0.03 | I37: 0
A38: ЗАВТРАК 2 | B38: Сок яблочный | C38: 150 | D38: 0.75 | E38: 0.00 | F38: 16.82 | G38: 67.50 | H38: 3.00 | I38: 399
A39: ИТОГО ПО ПРИЕМУ ПИЩИ: | C39: =SUM(C38) -> 150 | D39: 0.75 | E39: 0.00 | F39: 16.82 | G39: 67.50 | H39: 3.00
A40: ОБЕД | B40: Салат из квашеной капусты | C40: 30 | D40: 0.48 | E40: 3.03 | F40: 0.9 | G40: 32.7 | H40: 5.67 | I40: 17
A41: ОБЕД | B41: Свекольник | C41: 180 | D41: 1.39 | E41: 4.56 | F41: 7.24 | G41: 75 | H41: 8.89 | I41: 58
A42: ОБЕД | B42: Жаркое по-домашнему | C42: 180 | D42: 19.82 | E42: 6.11 | F42: 17.96 | G42: 233.10 | H42: 7.34 | I42: 276
A43: ОБЕД | B43: Компот из сушеных фруктов | C43: 150 | D43: 0.33 | E43: 0.02 | F43: 20.82 | G43: 84.8 | H43: 0.33 | I43: 376
A44: ОБЕД | B44: Хлеб ржаной | C44: 40 | D44: 2.08 | E44: 0.48 | F44: 17.71 | G44: 85 | H44: 0.00 | I44: 1
A45: ОБЕД
A46: ИТОГО ПО ПРИЕМУ ПИЩИ: | C46: =SUM(C40:C45) -> 580 | D46: 24.10 | E46: 14.20 | F46: 64.63 | G46: 510.60 | H46: 22.23
A47: ПОЛДНИК | B47: Булочка Молочная | C47: 50 | D47: 4.64 | E47: 0.99 | F47: 26.05 | G47: 131.40 | H47: 0.12 | I47: 479
A48: ПОЛДНИК | B48: Кисель из ягод | C48: 150 | D48: 0.07 | E48: 0.03 | F48: 19.61 | G48: 78.90 | H48: 1.37 | I48: 378
A49: ИТОГО ПО ПРИЕМУ ПИЩИ: | C49: =SUM(C47:C48) -> 200 | D49: 4.71 | E49: 1.02 | F49: 45.66 | G49: 210.30 | H49: 1.49 | K49: 70 | L49: 15.50 | M49: 7.00 | N49: 5.30 | O49: 161.60 | P49: 10.40
A50: УЖИН | B50: Омлет натуральный | C50: 90 | D50: 7.76 | E50: 12.04 | F50: 2.08 | G50: 140.00 | H50: 0.31 | I50: 307
A51: УЖИН | B51: Салат из зеленого горошка | C51: 40 | D51: 1.19 | E51: 2.07 | F51: 1.27 | G51: 33.3 | H51: 4.4 | I51: 10
A52: УЖИН | B52: Бутерброд с сыром | C52: 30 | D52: 3.53 | E52: 3.97 | F52: 9.68 | G52: 65.00 | H52: 0.05 | I52: 3
A53: УЖИН | B53: Какао с молоком | C53: 150 | D53: 3.06 | E53: 2.66 | F53: 13.18 | G53: 89.2 | H53: 1.19 | I53: 397
A54: УЖИН | B54: Фрукты | C54: 95 | D54: 0.38 | E54: 0.38 | F54: 9.31 | G54: 39.30 | H54: 9.50 | I54: 368
A55: ИТОГО ПО ПРИЕМУ ПИЩИ: | C55: 452 | D55: =SUM(D50:D54) -> 15.92 | E55: 21.12 | F55: 35.52 | G55: 366.80 | H55: 15.45
A56: ИТОГО ЗА ДЕНЬ: | C56: =C55+C49+C46+C39+C37 -> 1748 | D56: 51.74 | E56: 49.32 | F56: 202.69 | G56: 1426.20 | H56: 42.20
A58: День 3
A59: Прием пищи | B59: Наименование блюда | C59: Выход блюда | D59: Пищевые вещества, г | G59: Энергет. ценность, ккал | H59: Витамин С | I59: № рецептуры
D60: Б | E60: Ж | F60: У
A61: ЗАВТРАК | B61: Каша вязкая геркулесовая с маслом | C61: 150/4 | D61: 4.05 | E61: 6 | F61: 20.35 | G61: 140 | H61: 0.00 | I61: 168
A62: ЗАВТРАК | B62: Кофейный напиток с молоком | C62: 180 | D62: 2.85 | E62: 2.41 | F62: 14.36 | G62: 91 | H62: 1.17 | I62: 395
A63: ЗАВТРАК | B63: Бутерброд с маслом | C63: 18 | D63: 1.1 | E63: 3.39 | F63: 6.58 | G63: 61.2 | H63: 0.00 | I63: 1
A64: ИТОГО ПО ПРИЕМУ ПИЩИ: | C64: 352 | D64: =SUM(D61:D63) -> 8.00 | E64: =SUM(E61:E63) -> 11.80 | F64: =SUM(F61:F63) -> 41.29 | G64: =SUM(G61:G63) -> 292.20 | H64: =SUM(H61:H63) -> 1.17
A65: ЗАВТРАК 2 | B65: Компот из свежих плодов | C65: 150 | D65: 0.12 | E65: 0.12 | F65: 17.91 | G65: 73.20 | H65: 1.29 | I65: 526
A66: ИТОГО ПО ПРИЕМУ ПИЩИ: | C66: =SUM(C65) -> 150 | D66: 0.12 | E66: 0.12 | F66: 17.91 | G66: 73.2 | H66: 1.29
A67: ОБЕД | B67: Салат из свеклы | C67: 30 | D67: 0.45 | E67: 1.65 | F67: 2.52 | G67: 26.70 | H67: 1.71 | I67: 51
A68: ОБЕД | B68: Щи из свежей капусты с картофелем | C68: 150 | D68: 1.04 | E68: 2.93 | F68: 5.53 | G68: 51 | H68: 11.07 | I68: 67
A69: ОБЕД | B69: Биточки рыбные | C69: 50 | D69: 6.95 | E69: 1.05 | F69: 4.80 | G69: 56.50 | H69: 0.20 | I69: 351
A70: ОБЕД | B70: Рис отварной | C70: 110 | D70: 2.67 | E70: 3.93 | F70: 25.06 | G70: 154.00 | H70: 0.00 | I70: 315
A71: ОБЕД | B71: Соус польский | C71: 25 | D71: 0.64 | E71: 5.41 | F71: 1.15 | G71: 55.80 | H71: 0.38 | I71: 466
A72: ОБЕД | B72: Компот из изюма | C72: 150 | D72: 0.33 | E72: 0.02 | F72: 20.82 | G72: 84.8 | H72: 0.33 | I72: 376
A73: ОБЕД | B73: Хлеб ржаной | C73: 30 | D73: 1.56 | E73: 0.36 | F73: 13.29 | G73: 63.80 | H73: 0.00 | I73: 1
A74: ИТОГО ПО ПРИЕМУ ПИЩИ: | C74: =SUM(C67:C73) -> 545 | D74: 13.64 | E74: 15.35 | F74: 73.17 | G74: 492.60 | H74: 13.69
A75: ПОЛДНИК | B75: Кефир | C75: 180 | D75: 5.22 | E75: 4.50 | F75: 7.20 | G75: 90.00 | H75: 1.26 | I75: 401
A76: ПОЛДНИК | B76: Хлеб пшеничный | C76: 20 | D76: 1.42 | E76: 0.22 | F76: 9.10 | G76: 45.80 | H76: 0.00 | I76: 1
A77: ПОЛДНИК | B77: Пряники | C77: 20 | D77: 1.18 | E77: 0.94 | F77: 15 | G77: 73.2 | H77: 0.00 | I77: 608
A78: ИТОГО ПО ПРИЕМУ ПИЩИ: | C78: =SUM(C75:C77) -> 220 | D78: 7.82 | E78: 5.66 | F78: 31.30 | G78: 209.00 | H78: 1.26
A79: УЖИН | B79: Запеканка картофельная с печенью | C79: 160 | D79: 12.18 | E79: 5.85 | F79: 19 | G79: 238 | H79: 6.40 | I79: 19
A80: УЖИН | B80: Соус сметанный | C80: 25 | D80: 0.35 | E80: 1.02 | F80: 1.46 | G80: 18.5 | H80: 0.01 | I80: 354
A81: УЖИН | B81: Хлеб пшеничный | C81: 15 | D81: 1.07 | E81: 0.17 | F81: 6.81 | G81: 34.30 | H81: 0.00 | I81: 1
A82: УЖИН | B82: Чай с сахаром | C82: 150/7 | D82: 0.05 | E82: 0.02 | F82: 8.32 | G82: 33.30 | H82: 0.02 | I82: 392
A83: УЖИН | B83: Фрукты | C83: 95 | D83: 0.38 | E83: 0.38 | F83: 9.31 | G83: 39.30 | H83: 9.50 | I83: 368
A84: ИТОГО ПО ПРИЕМУ ПИЩИ: | C84: 452 | D84: =SUM(D79:D83) -> 14.03 | E84: =SUM(E79:E83) -> 7.44 | F84: =SUM(F79:F83) -> 44.90 | G84: =SUM(G79:G83) -> 363.40 | H84: =SUM(H79:H83) -> 15.93
A85: ИТОГО ЗА ДЕНЬ: | C85: =C84+C78+C74+C66+C64 -> 1719 | D85: 43.61 | E85: 40.37 | F85: 208.57 | G85: 1430.40 | H85: 33.34
A87: День 4
A88: Прием пищи | B88: Наименование блюда | C88: Выход блюда | D88: Пищевые вещества, г | G88: Энергет. ценность, ккал | H88: Витамин С | I88: № рецептуры
D89: Б | E89: Ж | F89: У
A90: ЗАВТРАК | B90: Каша вязкая пшенная с маслом | C90: 140/4 | D90: 4 | E90: 5.6 | F90: 22.79 | G90: 140 | H90: 0 | I90: 168
A91: ЗАВТРАК | B91: Чай с сахаром | C91: 180/7 | D91: 0.06 | E91: 0.02 | F91: 9.99 | G91: 40.00 | H91: 0.30 | I91: 392
A92: ЗАВТРАК | B92: Бутерброд с маслом | C92: 30 | D92: 1.83 | E92: 5.66 | F92: 10.96 | G92: 102 | H92: 0 | I92: 1
A93: ИТОГО ПО ПРИЕМУ ПИЩИ: | C93: 361 | D93: =SUM(D90:D92) -> 5.89 | E93: =SUM(E90:E92) -> 11.28 | F93: =SUM(F90:F92) -> 43.74 | G93: =SUM(G90:G92) -> 282.00 | H93: =SUM(H90:H92) -> 0.30
A94: ЗАВТРАК 2 | B94: Кефир | C94: 150 | D94: 4.35 | E94: 3.75 | F94: 6.00 | G94: 73.00 | H94: 1.05 | I94: 401
A95: ИТОГО ПО ПРИЕМУ ПИЩИ: | C95: =SUM(C94) -> 150 | D95: 4.35 | E95: 3.75 | F95: 6.00 | G95: 73.00 | H95: 1.05
A96: ОБЕД | B96: Икра морковная | C96: 30 | D96: 0.27 | E96: 1.41 | F96: 1.78 | G96: 20.8 | H96: 1.66 | I96: 54
A97: ОБЕД | B97: Суп молочный с крупой | C97: 150 | D97: 3.62 | E97: 3.87 | F97: 12.39 | G97: 98.9 | H97: 1.15 | I97: 170
A98: ОБЕД | B98: Котлета мясная | C98: 50 | D98: 7.78 | E98: 5.78 | F98: 7.85 | G98: 114.3 | H98: 0.08 | I98: 282
A99: ОБЕД | B99: Пюре картофельное | C99: 110 | D99: 2.25 | E99: 3.52 | F99: 14.99 | G99: 101.2 | H99: 13.31 | I99: 321
A100: ОБЕД | B100: Компот из сушеных фруктов | C100: 150 | D100: 0.33 | E100: 0.02 | F100: 20.82 | G100: 84.8 | H100: 0.33 | I100: 376
A101: ОБЕД | B101: Хлеб ржаной | C101: 40 | D101: 2.08 | E101: 0.48 | F101: 17.71 | G101: 85 | H101: 0.00 | I101: 1
A102: ИТОГО ПО ПРИЕМУ ПИЩИ: | C102: =SUM(C96:C101) -> 530 | D102: 16.33 | E102: 15.08 | F102: 75.54 | G102: 505.00 | H102: 16.53
A103: ПОЛДНИК | B103: Сок яблочный | C103: 150 | D103: 0.75 | E103: 0.00 | F103: 16.82 | G103: 67.50 | H103: 3.00 | I103: 399
A104: ПОЛДНИК | B104: Ватрушка с творогом | C104: 50 | D104: 6.59 | E104: 3.91 | F104: 20.84 | G104: 144.10 | H104: 0.02 | I104: 458
A105: ПОЛДНИК
A106: ИТОГО ПО ПРИЕМУ ПИЩИ: | C106: =SUM(C103:C105) -> 200 | D106: 7.34 | E106: 3.91 | F106: 37.66 | G106: 211.60 | H106: 3.02
A107: УЖИН | B107: Макароны с сыром | C107: 150 | D107: 8.37 | E107: 7.71 | F107: 23.83 | G107: 198 | H107: 0.13 | I107: 206
A108: УЖИН | B108: Хлеб пшеничный | C108: 15 | D108: 1.07 | E108: 0.17 | F108: 6.83 | G108: 34.40 | H108: 0.00 | I108: 1
A109: УЖИН | B109: Какао с молоком | C109: 150 | D109: 3.06 | E109: 2.66 | F109: 13.18 | G109: 89.2 | H109: 1.19 | I109: 397
A110: УЖИН | B110: Фрукты | C110: 95 | D110: 0.38 | E110: 0.38 | F110: 9.31 | G110: 39.30 | H110: 9.50 | I110: 368
A111: ИТОГО ПО ПРИЕМУ ПИЩИ: | C111: =SUM(C107:C110) -> 410 | D111: 12.88 | E111: 10.92 | F111: 53.15 | G111: 360.90 | H111: 10.82
A112: ИТОГО ЗА ДЕНЬ: | C112: =C111+C106+C102+C95+C93 -> 1651.00 | D112: 46.79 | E112: 44.94 | F112: 216.09 | G112: 1432.50 | H112: 31.72
A114: День 5
A115: Прием пищи | B115: Наименование блюда | C115: Выход блюда | D115: Пищевые вещества, г | G115: Энергет. ценность, ккал | H115: Витамин С | I115: № рецептуры
D116: Б | E116: Ж | F116: У
A117: ЗАВТРАК | B117: Каша вязкая пшеничная с маслом | C117: 150/4 | D117: 4.11 | E117: 6 | F117: 25.03 | G117: 144.7 | H117: 0.00 | I117: 168
A118: ЗАВТРАК | B118: Кофейный напиток с молоком | C118: 180 | D118: 2.85 | E118: 2.41 | F118: 14.36 | G118: 91 | H118: 1.17 | I118: 395
A119: ЗАВТРАК | B119: Бутерброд с маслом | C119: 17 | D119: 1.04 | E119: 3.21 | F119: 6.21 | G119: 57.8 | H119: 0.00 | I119: 1
A120: ИТОГО ПО ПРИЕМУ ПИЩИ: | C120: 351 | D120: =SUM(D117:D119) -> 8.00 | E120: =SUM(E117:E119) -> 11.62 | F120: =SUM(F117:F119) -> 45.60 | G120: =SUM(G117:G119) -> 293.50 | H120: =SUM(H117:H119) -> 1.17
A121: ЗАВТРАК 2 | B121: Компот из свежих плодов | C121: 150 | D121: 0.12 | E121: 0.12 | F121: 17.91 | G121: 73.20 | H121: 1.29 | I121: 526
A122: ИТОГО ПО ПРИЕМУ ПИЩИ: | C122: =SUM(C121) -> 150 | D122: 0.12 | E122: 0.12 | F122: 17.91 | G122: 73.20 | H122: 1.29
A123: ОБЕД | B123: Огурец соленый порционно | C123: 30 | D123: 0.24 | E123: 0.03 | F123: 0.52 | G123: 3.9 | H123: 1.5 | I123: 113
A124: ОБЕД | B124: Суп картофельный с клецками | C124: 150 | D124: 1.6 | E124: 2.39 | F124: 8.86 | G124: 63.3 | H124: 3.5 | I124: 151
A125: ОБЕД | B125: Голубцы ленивые с говядиной | C125: 160 | D125: 13.6 | E125: 13.28 | F125: 6.4 | G125: 200 | H125: 19.8 | I125: 377
A126: ОБЕД | B126: Соус сметанный с томатом | C126: 30 | D126: 1.03 | E126: 6.38 | F126: 1.89 | G126: 69 | H126: 0.44 | I126: 453
A127: ОБЕД | B127: Компот из кураги | C127: 180 | D127: 0.4 | E127: 0.02 | F127: 24.98 | G127: 101.7 | H127: 0.4 | I127: 376
A128: ОБЕД | B128: Хлеб ржаной | C128: 30 | D128: 1.56 | E128: 0.36 | F128: 13.29 | G128: 63.80 | H128: 0.00 | I128: 1
A129: ИТОГО ПО ПРИЕМУ ПИЩИ: | C129: =SUM(C123:C128) -> 580 | D129: 18.43 | E129: 22.46 | F129: 55.94 | G129: 501.70 | H129: 25.64
A130: ПОЛДНИК | B130: Кефир | C130: 180 | D130: 5.22 | E130: 4.50 | F130: 7.20 | G130: 90.00 | H130: 1.26 | I130: 401
A131: ПОЛДНИК | B131: Хлеб пшеничный | C131: 20 | D131: 1.42 | E131: 0.22 | F131: 9.10 | G131: 45.80 | H131: 0.00 | I131: 1
A132: ПОЛДНИК | B132: Печенье | C132: 20 | D132: 1.48 | E132: 1.88 | F132: 13.80 | G132: 81.40 | H132: 0.00 | I132: 609
A133: ИТОГО ПО ПРИЕМУ ПИЩИ: | C133: =SUM(C130:C132) -> 220.00 | D133: 8.12 | E133: 6.60 | F133: 30.10 | G133: 217.20 | H133: 1.26
A134: УЖИН | B134: Суфле куриное | C134: 60 | D134: 8.7 | E134: 11.17 | F134: 1.83 | G134: 142.3 | H134: 0.11 | I134: 310
A135: УЖИН | B135: Картофельное пюре с морковью | C135: 110 | D135: 1.98 | E135: 4.95 | F135: 9.35 | G135: 90.2 | H135: 2.86 | I135: 435
A136: УЖИН | B136: Хлеб пшеничный | C136: 20 | D136: 1.42 | E136: 0.22 | F136: 9.10 | G136: 45.80 | H136: 0.00 | I136: 1
A137: УЖИН | B137: Чай с сахаром | C137: 150/7 | D137: 0.05 | E137: 0.02 | F137: 8.32 | G137: 33.30 | H137: 0.02 | I137: 392
A138: УЖИН | B138: Фрукты | C138: 95 | D138: 0.38 | E138: 0.38 | F138: 9.31 | G138: 39.30 | H138: 9.50 | I138: 368
A139: ИТОГО ПО ПРИЕМУ ПИЩИ: | C139: 442 | D139: =SUM(D134:D138) -> 12.53 | E139: 16.74 | F139: 37.91 | G139: 350.90 | H139: 12.49
A140: ИТОГО ЗА ДЕНЬ: | C140: =C139+C133+C129+C122+C120 -> 1743 | D140: 47.20 | E140: 57.54 | F140: 187.46 | G140: 1436.50 | H140: 41.85
A142: День 6
A143: Прием пищи | B143: Наименование блюда | C143: Выход блюда | D143: Пищевые вещества, г | G143: Энергет. ценность, ккал | H143: Витамин С | I143: № рецептуры
D144: Б | E144: Ж | F144: У
A145: ЗАВТРАК | B145: Каша манная с маслом | C145: 150/4 | D145: 3.39 | E145: 6.00 | F145: 22.92 | G145: 132.70 | H145: 0.00 | I145: 168
A146: ЗАВТРАК | B146: Кофейный напиток с молоком | C146: 180 | D146: 2.85 | E146: 2.41 | F146: 14.36 | G146: 91.00 | H146: 1.17 | I146: 395
A147: ЗАВТРАК | B147: Бутерброд с маслом | C147: 20 | D147: 1,22 | E147: 3.77 | F147: 7.31 | G147: 68.00 | H147: 0.00 | I147: 1
A148: ИТОГО ПО ПРИЕМУ ПИЩИ: | C148: 350 | D148: =SUM(D145:D147) -> 6.24 | E148: =SUM(E145:E147) -> 12.18 | F148: =SUM(F145:F147) -> 44.59 | G148: =SUM(G145:G147) -> 291.70 | H148: =SUM(H145:H147) -> 1.17 | I148: 0
A149: ЗАВТРАК 2 | B149: Сок яблочный | C149: 150 | D149: 0.75 | E149: 0.00 | F149: 16.82 | G149: 67.50 | H149: 3.00 | I149: 399
A150: ИТОГО ПО ПРИЕМУ ПИЩИ: | C150: =SUM(C149) -> 150 | D150: 0.75 | E150: 0.00 | F150: 16.82 | G150: 67.50 | H150: 3.00 | I150: 0
A151: ОБЕД | B151: Икра кабачковая | C151: 30 | D151: 0.57 | E151: 2.67 | F151: 2.31 | G151: 35.70 | H151: 2.10 | I151: 121
A152: ОБЕД | B152: Суп картофельный с бобовыми | C152: 150 | D152: 3.30 | E152: 3.16 | F152: 9.79 | G152: 81.00 | H152: 3.49 | I152: 81
A153: ОБЕД | B153: Суфле из отварной говядины | C153: 50 | D153: 11.00 | E153: 9.50 | F153: 0.95 | G153: 133.50 | H153: 0.05 | I153: 392
A154: ОБЕД | B154: Макароны отварные | C154: 110 | D154: 4.04 | E154: 3.35 | F154: 19.38 | G154: 123.20 | H154: 0.00 | I154: 317
A155: ОБЕД | B155: Компот из свежих плодов | C155: 150 | D155: 0.12 | E155: 0.12 | F155: 17.91 | G155: 73.20 | H155: 1.29 | I155: 526
A156: ОБЕД | B156: Хлеб ржаной | C156: 30 | D156: 1.56 | E156: 0.36 | F156: 13.29 | G156: 63.80 | H156: 0.00 | I156: 1
A157: ИТОГО ПО ПРИЕМУ ПИЩИ: | C157: =SUM(C151:C156) -> 520 | D157: =SUM(D151:D156) -> 20.59 | E157: 19.16 | F157: 63.63 | G157: 510.40 | H157: 6.93 | I157: 0
A158: ПОЛДНИК | B158: Кефир | C158: 180 | D158: 5.22 | E158: 4.50 | F158: 7.20 | G158: 90.00 | H158: 1.26 | I158: 401
A159: ПОЛДНИК | B159: Хлеб пшеничный | C159: 20 | D159: 1.42 | E159: 0.22 | F159: 9.10 | G159: 45.80 | H159: 0.00 | I159: 1
A160: ПОЛДНИК | B160: Печенье | C160: 20 | D160: 1.48 | E160: 1.88 | F160: 13.80 | G160: 81.40 | H160: 0.00 | I160: 609
A161: ИТОГО ПО ПРИЕМУ ПИЩИ: | C161: =SUM(C158:C160) -> 220 | D161: 8.12 | E161: 6.60 | F161: 30.10 | G161: 217.20 | H161: 1.26 | I161: 0
A162: УЖИН | B162: Пудинг творожный запеченный | C162: 95 | D162: 13.11 | E162: 12.48 | F162: 19 | G162: 245.1 | H162: 0.19 | I162: 325
A163: УЖИН | B163: Соус фруктовый | C163: 25 | D163: 0.03 | E163: 0.03 | F163: 4.02 | G163: 16.4 | H163: 0.45 | I163: 479
A164: УЖИН | B164: Хлеб пшеничный | C164: 10 | D164: 0.71 | E164: 0.11 | F164: 4.55 | G164: 22.90 | H164: 0.00 | I164: 1
A165: УЖИН | B165: Чай с сахаром | C165: 180/7 | D165: 0.06 | E165: 0.02 | F165: 9.99 | G165: 40.00 | H165: 0.03 | I165: 392
A166: УЖИН | B166: Фрукты | C166: 95 | D166: 0.38 | E166: 0.38 | F166: 9.31 | G166: 39.30 | H166: 9.50 | I166: 368
A167: ИТОГО ПО ПРИЕМУ ПИЩИ: | C167: 412 | D167: =SUM(D162:D166) -> 14.29 | E167: =SUM(E162:E166) -> 13.02 | F167: =SUM(F162:F166) -> 46.87 | G167: =SUM(G162:G166) -> 363.70 | H167: =SUM(H162:H166) -> 10.17 | I167: 0
A168: ИТОГО ЗА ДЕНЬ: | C168: =C167+C161+C157+C150+C148 -> 1652.00 | D168: 49.99 | E168: 50.96 | F168: 202.01 | G168: 1450.50 | H168: 22.53
A170: День 7
A171: Прием пищи | B171: Наименование блюда | C171: Выход блюда | D171: Пищевые вещества, г | G171: Энергет. ценность, ккал | H171: Витамин С | I171: № рецептуры
D172: Б | E172: Ж | F172: У
A173: ЗАВТРАК | B173: Каша вязкая пшенная с маслом | C173: 140/4 | D173: 4 | E173: 5.6 | F173: 22.79 | G173: 140 | H173: 0 | I173: 168
A174: ЗАВТРАК | B174: Чай с сахаром | C174: 180/7 | D174: 0.06 | E174: 0.02 | F174: 9.99 | G174: 40.00 | H174: 0.30 | I174: 392
A175: ЗАВТРАК | B175: Бутерброд с маслом | C175: 30 | D175: 1.83 | E175: 5.66 | F175: 10.96 | G175: 102 | H175: 0 | I175: 1
A176: ИТОГО ПО ПРИЕМУ ПИЩИ: | C176: 361 | D176: =SUM(D173:D175) -> 5.89 | E176: =SUM(E173:E175) -> 11.28 | F176: =SUM(F173:F175) -> 43.74 | G176: =SUM(G173:G175) -> 282.00 | H176: 2.57
A177: ЗАВТРАК 2 | B177: Кефир | C177: 150 | D177: 4.35 | E177: 3.75 | F177: 6.00 | G177: 73.00 | H177: 1.05 | I177: 401
A178: ИТОГО ПО ПРИЕМУ ПИЩИ: | C178: =SUM(C177) -> 150 | D178: 4.35 | E178: 3.75 | F178: 6 | G178: 73 | H178: 1.05
A179: ОБЕД | B179: Огурец соленый порционно | C179: 30 | D179: 0.24 | E179: 0.03 | F179: 0.52 | G179: 3.9 | H179: 1.5 | I179: 113
A180: ОБЕД | B180: Борщ с капустой и картофелем | C180: 180 | D180: 1.31 | E180: 3.54 | F180: 9.17 | G180: 73.8 | H180: 7.4 | I180: 57
A181: ОБЕД | B181: Картофельная запеканка с мясом | C181: 160 | D181: 11.76 | E181: 9.22 | F181: 24.92 | G181: 229.8 | H181: 3.69 | I181: 291
A182: ОБЕД | B182: Соус сметанный | C182: 20 | D182: 0.28 | E182: 0.81 | F182: 1.17 | G182: 14.8 | H182: 0.01 | I182: 354
A183: ОБЕД | B183: Компот из сушеных фруктов | C183: 180 | D183: 0.4 | E183: 0.02 | F183: 24.98 | G183: 101.7 | H183: 0.4 | I183: 376
A184: ОБЕД | B184: Хлеб ржаной | C184: 30 | D184: 1.56 | E184: 0.36 | F184: 13.29 | G184: 63.80 | H184: 0.00 | I184: 1
A185: ИТОГО ПО ПРИЕМУ ПИЩИ: | C185: =SUM(C179:C184) -> 600 | D185: 15.55 | E185: 13.98 | F185: 74.05 | G185: 487.80 | H185: 13.00
A186: ПОЛДНИК | B186: Булочка Домашняя | C186: 45 | D186: 3.27 | E186: 5.64 | F186: 24.26 | G186: 160.9 | H186: 0.00 | I186: 469
A187: ПОЛДНИК | B187: Компот из замороженных ягод | C187: 160 | D187: 0.26 | E187: 0.09 | F187: 13.76 | G187: 56.8 | H187: 19.20 | I187: 530
A188: ИТОГО ПО ПРИЕМУ ПИЩИ: | C188: =SUM(C186:C187) -> 205 | D188: 3.53 | E188: 5.73 | F188: 38.02 | G188: 217.70 | H188: 19.20
A189: УЖИН | B189: Омлет натуральный | C189: 90 | D189: 7.76 | E189: 12.04 | F189: 2.08 | G189: 140.00 | H189: 0.31 | I189: 307
A190: УЖИН | B190: Салат из зеленого горошка | C190: 40 | D190: 1.19 | E190: 2.07 | F190: 1.27 | G190: 33.3 | H190: 4.4 | I190: 10
A191: УЖИН | B191: Бутерброд с сыром | C191: 30 | D191: 3.53 | E191: 3.97 | F191: 9.68 | G191: 65.00 | H191: 0.05 | I191: 3
A192: УЖИН | B192: Какао с молоком | C192: 150 | D192: 3.06 | E192: 2.66 | F192: 13.18 | G192: 89.2 | H192: 1.19 | I192: 397
A193: УЖИН | B193: Фрукты | C193: 95 | D193: 0.38 | E193: 0.38 | F193: 9.31 | G193: 39.30 | H193: 9.50 | I193: 368
A194: УЖИН
A195: ИТОГО ПО ПРИЕМУ ПИЩИ: | C195: =SUM(C189:C194) -> 405 | D195: =SUM(D189:D194) -> 15.92 | E195: 21.12 | F195: 35.52 | G195: 366.8 | H195: 15.45
A196: ИТОГО ЗА ДЕНЬ: | C196: =C195+C188+C185+C178+C176 -> 1721 | D196: 45.24 | E196: 55.86 | F196: 197.33 | G196: 1427.30 | H196: 51.27
A198: День 8
A199: Прием пищи | C199: Выход блюда | D199: Пищевые вещества, г | G199: Энергет. ценность, ккал | H199: Витамин С | I199: № рецептуры
D200: Б | E200: Ж | F200: У
A201: ЗАВТРАК | B201: Каша вязкая ячневая с маслом | C201: 150/4 | D201: 3.3 | E201: 6 | F201: 21.24 | G201: 136 | H201: 0.00 | I201: 168
A202: ЗАВТРАК | B202: Кофейный напиток с молоком | C202: 180 | D202: 2.85 | E202: 2.41 | F202: 14.36 | G202: 91 | H202: 1.17 | I202: 395
A203: ЗАВТРАК | B203: Бутерброд с маслом | C203: 19 | D203: 1.16 | E203: 3.58 | F203: 6.94 | G203: 64.6 | H203: 0.00 | I203: 1
A204: ИТОГО ПО ПРИЕМУ ПИЩИ: | C204: 353 | D204: =SUM(D201:D203) -> 7.31 | E204: =SUM(E201:E203) -> 11.99 | F204: =SUM(F201:F203) -> 42.54 | G204: =SUM(G201:G203) -> 291.60 | H204: =SUM(H201:H203) -> 1.17
A205: ЗАВТРАК 2 | B205: Компот из свежих плодов | C205: 150 | D205: 0.12 | E205: 0.12 | F205: 17.91 | G205: 73.20 | H205: 1.29 | I205: 526
A206: ИТОГО ПО ПРИЕМУ ПИЩИ: | C206: =SUM(C205) -> 150 | D206: 0.12 | E206: 0.12 | F206: 17.91 | G206: 73.20 | H206: 1.29
A207: ОБЕД | B207: Салат из соленых огурцов с луком | C207: 30 | D207: 0.36 | E207: 1.82 | F207: 1.16 | G207: 23.1 | H207: 2.31 | I207: 19
A208: ОБЕД | B208: Суп "Крестьянский" | C208: 180 | D208: 1.67 | E208: 5.57 | F208: 11.1 | G208: 101.2 | H208: 13.25 | I208: 199
... 75 more rows

Sheet Лист1
B4: 180 | C4: =$B4*C6/$B6 -> 5.59 | D4: =$B4*D6/$B6 -> 6.72 | E4: =$B4*E6/$B6 -> 22.58 | F4: =$B4*F6/$B6 -> 172.58 | G4: =$B4*G6/$B6 -> 1.76
B5: 200 | C5: =$B5*C6/$B6 -> 6.21 | D5: =$B5*D6/$B6 -> 7.47 | E5: =$B5*E6/$B6 -> 25.09 | F5: =$B5*F6/$B6 -> 191.76 | G5: =$B5*G6/$B6 -> 1.96
B6: 170 | C6: 5.28 | D6: 6.35 | E6: 21.33 | F6: 162.99 | G6: 1.66

Sheet Лист3
